bitfinex/quotes_ETHUSD_20251201
["timestamp","ask_amount","ask_price","bid_price","bid_amount"]
[1764606182129,0.002,2734.7,2734.4,0.405504]
[1764606182328,0.002,2734.7,2734.6,0.457]
[1764606182534,0.002,2734.7,2734.6,0.862504]
[1764606182884,0.002,2735.0,2734.7,1.13109811]
[1764606183024,0.7757,2736.2,2735.0,0.72559411]
[1764606183340,0.7757,2736.2,2734.9,1.18259411]
[1764606183544,0.7757,2736.2,2735.2,14.62415908]
[1764606183545,0.1777,2736.2,2735.2,14.62415908]
[1764606183709,0.1777,2736.2,2735.3,0.72559411]
[1764606183913,0.6352,2736.2,2735.3,0.72559411]
[1764606184139,0.6352,2736.2,2735.2,7.31207954]
[1764606184438,0.4575,2736.1,2735.2,7.31207954]
[1764606185111,0.77593652,2736.1,2735.2,10.96811931]
[1764606185308,0.4575,2736.1,2735.2,7.31207954]
[1764606185628,0.4575,2736.1,2734.7,10.97012469]
[1764606185629,0.0958,2735.3,2734.7,10.97012469]
[1764606186007,0.0958,2735.3,2734.7,7.31341646]
[1764606186626,0.4539,2735.7,2734.7,10.97012469]
[1764606186937,0.4539,2735.7,2734.8,1.53108937]
[1764606186938,0.597,2735.6,2734.8,1.53108937]
[1764606187324,0.4539,2735.7,2734.8,1.53108937]
[1764606187543,0.597,2735.5,2734.9,7.31288164]
[1764606187935,0.2754,2735.0,2734.9,3.65644082]
[1764606188137,0.4575,2735.9,2734.9,10.96932246]
[1764606188351,0.5962,2735.8,2735.0,0.36564408]
[1764606188763,1.0537,2735.8,2735.0,0.36564408]
[1764606189168,1.0537,2735.8,2734.9,7.31288164]
[1764606189368,0.5962,2735.8,2734.9,10.96932246]
[1764606190085,0.1777,2736.2,2735.0,0.4891]
[1764606190240,0.1777,2736.2,2735.7,0.1845]
[1764606190440,0.597,2736.2,2735.7,0.1845]
[1764606190771,10.46314101,2737.3,2735.7,0.1845]
[1764606190772,0.597,2736.3,2735.7,0.6736]
[1764606190945,0.2684,2735.8,2734.9,0.4891]
[1764606191155,0.2684,2735.8,2734.7,3.65670823]
[1764606191465,0.4539,2735.7,2734.8,0.43406686]
[1764606191667,0.4539,2735.7,2734.7,7.31341646]
[1764606191668,0.597,2735.6,2734.7,7.31341646]
[1764606191835,0.597,2735.6,2734.7,10.97012469]
[1764606192351,0.1777,2735.8,2735.0,1.0]
[1764606192548,0.1777,2736.1,2735.0,1.0]
[1764606192903,0.4575,2737.0,2735.1,11.13674101]
[1764606193177,0.4575,2737.0,2735.1,0.6736]
[1764606193178,0.596,2736.5,2735.1,0.6736]
[1764606193346,0.596,2736.5,2735.2,0.4891]
[1764606193539,0.4575,2736.4,2735.3,10.96771833]
[1764606193757,0.4575,2736.4,2735.4,1.63478183]
[1764606193945,0.4575,2736.4,2735.2,7.80112166]
[1764606194153,0.4575,2736.4,2735.3,0.4891]
[1764606194558,0.405504,2736.3,2735.4,0.0032]
[1764606194762,0.405504,2736.3,2735.2,7.31202166]
[1764606194947,0.4575,2736.2,2735.2,7.31202166]
[1764606195166,0.2675,2735.3,2735.0,1.0]
[1764606195365,0.4986,2735.1,2735.0,1.0]
[1764606195957,0.5495,2735.1,2735.0,1.0]
[1764606196164,0.955004,2735.1,2735.0,1.0]
[1764606196559,11.89047893,2735.1,2735.0,0.7457]
[1764606196775,15.91037467,2735.1,2735.0,0.7457]
[1764606197090,15.54665237,2735.1,2735.0,0.7457]
[1764606197585,16.48403318,2735.1,2735.0,0.7457]
[1764606198285,16.48403318,2735.1,2734.8,0.001]
[1764606198286,0.7692263,2734.9,2734.8,0.001]
[1764606198487,3.77645541,2734.9,2734.8,0.001]
[1764606198687,3.87023311,2734.9,2734.8,0.001]
[1764606198990,4.23395541,2734.9,2734.8,0.001]
[1764606199188,1.13109811,2734.5,2733.6,0.001]
[1764606199387,0.547804,2733.7,2733.6,0.001]
[1764606199589,1.5085263,2733.7,2733.6,0.001]
[1764606199791,0.72559411,2733.5,2733.1,0.001]
[1764606200098,1.08931641,2733.1,2733.0,0.001]
[1764606200393,1.08931641,2733.1,2731.1,4.25845065]
[1764606200394,0.405504,2732.7,2731.1,0.4891]
[1764606200597,1.13109811,2732.5,2731.2,0.0016]
[1764606200895,1.75642391,2732.4,2731.3,0.73246566]
[1764606201066,2.93951802,2732.4,2731.3,0.73246566]
[1764606201393,1.75642391,2732.4,2731.3,0.73246566]
[1764606201591,0.4575,2732.3,2731.3,0.73246566]
[1764606201788,0.4575,2732.3,2731.4,7.32225232]
[1764606201988,0.7920022,2732.3,2731.4,7.32225232]
[1764606203375,0.596,2732.2,2731.4,7.32225232]
[1764606203626,0.405504,2732.7,2731.5,0.4891]
[1764606203826,0.596,2732.6,2732.3,3.65992021]
[1764606204117,0.596,2732.5,2731.7,3.66072409]
[1764606204471,0.596,2732.5,2731.7,7.32144818]
[1764606204905,0.596,2732.5,2731.3,0.73246566]
[1764606205114,0.863004,2732.4,2731.3,0.72559411]
[1764606205282,0.596,2732.5,2731.4,0.4891]
[1764606205897,0.596,2732.5,2731.5,10.98297636]
[1764606206429,0.596,2732.5,2731.6,0.4891]
[1764606207497,0.596,2732.5,2731.6,1.21469411]
[1764606207727,0.596,2732.5,2731.7,1.58586626]
[1764606207911,0.596,2732.5,2731.8,10.98177024]
[1764606208502,0.596,2732.5,2731.8,7.32118016]
[1764606208923,0.876204,2732.4,2731.5,3.66099212]
[1764606209228,0.876204,2732.4,2731.5,7.32198424]
[1764606209229,1.2399263,2732.4,2731.5,7.32198424]
[1764606209431,0.18359263,2732.3,2731.5,7.32198424]
[1764606209793,0.4598,2732.6,2731.3,0.4561]
[1764606210007,1.002504,2732.5,2731.3,0.4561]
[1764606210392,1.462304,2732.5,2731.3,0.4561]
[1764606211121,1.8260263,2732.5,2731.3,0.4561]
[1764606211496,1.64227716,2732.5,2731.3,0.4561]
[1764606211846,0.597,2732.4,2731.3,1.96632133]
[1764606212142,1.13109811,2732.3,2731.4,3.66112616]
[1764606212324,0.3637223,2732.2,2731.4,3.66112616]
[1764606212534,0.3637223,2732.2,2730.7,4.44344391]
[1764606212535,0.2661,2731.5,2731.1,3.66152832]
[1764606212694,0.597,2731.4,2730.9,3.66179647]
[1764606212899,0.597,2731.4,2731.0,0.0032]
[1764606213913,0.597,2731.4,2730.4,3.66246703]
[1764606214113,0.4598,2731.3,2730.4,7.32493406]
[1764606214312,0.19591941,2731.3,2730.4,11.44350109]
[1764606214513,0.77025032,2731.3,2730.4,7.78103406]
[1764606214815,0.1768,2731.8,2731.2,0.1827]
[1764606215139,0.5743421,2732.2,2731.3,0.4561]
[1764606215307,0.4598,2732.6,2731.3,0.4561]
[1764606215509,0.1798,2732.9,2731.3,0.4561]
[1764606215510,0.6396,2732.9,2731.3,0.4561]
[1764606215709,0.596,2732.8,2731.3,0.4561]
[1764606216025,10.46314101,2732.7,2731.5,0.72559411]
[1764606216203,10.56284511,2732.7,2731.5,0.72559411]
[1764606216403,0.596,2732.8,2731.6,1.62699726]
[1764606216611,10.46314101,2732.3,2730.8,0.4561]
[1764606216815,0.7692263,2732.1,2731.2,0.72559411]
[1764606217036,0.405504,2731.8,2731.0,3.66259718]
[1764606217336,0.405504,2731.8,2731.0,0.001]
[1764606217337,0.405504,2731.6,2731.0,0.001]
[1764606217507,0.1768,2731.1,2731.0,0.001]
[1764606217704,11.04544501,2731.1,2731.0,0.001]
[1764606217915,13.33538362,2731.1,2731.0,0.001]
[1764606218431,31.62670094,2731.1,2731.0,0.001]
[1764606218629,31.62670094,2731.1,2730.7,0.001]
[1764606218630,4.99209811,2731.0,2730.7,0.001]
[1764606218940,0.405504,2730.5,2730.3,0.001]
[1764606219151,12.55496142,2730.4,2730.3,0.001]
[1764606219321,19.62854542,2730.4,2730.3,0.001]
[1764606219535,25.83288342,2730.4,2730.3,0.001]
[1764606219830,24.38700942,2730.4,2730.3,0.001]
[1764606220035,23.6802328,2730.4,2730.3,0.001]
[1764606220514,29.3761328,2730.4,2730.3,0.001]
[1764606220711,0.7692263,2730.1,2730.0,0.001]
[1764606220910,13.6776223,2730.0,2729.6,0.001]
[1764606221112,26.43070192,2730.0,2729.6,0.001]
[1764606221337,2.23564261,2730.0,2729.6,0.001]
[1764606221546,0.72559411,2730.0,2729.6,0.001]
[1764606221751,1.32159411,2730.0,2729.6,0.001]
[1764606222924,2.18689811,2730.0,2729.6,0.001]
[1764606223126,1.72709811,2730.0,2729.6,0.001]
[1764606223457,1.13109811,2730.0,2729.6,0.001]
[1764606223751,1.72709811,2730.0,2729.6,0.001]
[1764606223953,1.32259411,2730.0,2729.7,7.32781246]
[1764606224460,0.72559411,2730.0,2729.7,7.32781246]
[1764606224624,1.13109811,2730.0,2729.7,0.001]
[1764606224825,0.72559411,2730.0,2729.7,0.001]
[1764606225026,1.32259411,2730.0,2729.7,0.001]
[1764606226146,0.72559411,2730.0,2729.9,0.4571]
[1764606226534,0.72559411,2730.0,2729.9,0.001]
[1764606229638,0.3637223,2731.0,2729.9,0.001]
[1764606229842,1.0568,2730.9,2729.9,0.001]
[1764606230046,0.597,2730.8,2729.9,0.4571]
[1764606230248,0.597,2730.8,2730.0,7.32600732]
[1764606230769,0.1768,2731.1,2730.1,0.6388]
[1764606231065,0.65969196,2732.5,2730.2,1.52908146]
[1764606231238,0.597,2732.4,2731.2,0.1827]
[1764606231437,0.57439718,2731.7,2731.3,0.4561]
[1764606231638,0.597,2731.9,2731.3,0.4561]
[1764606232050,0.57427494,2732.3,2731.3,0.4561]
[1764606232263,0.57427494,2732.3,2731.4,10.98337848]
[1764606232566,0.57427494,2732.3,2731.5,1.14394785]
[1764606232776,0.57427494,2732.3,2731.4,7.32225232]
[1764606233066,0.57427494,2732.3,2731.5,0.4561]
[1764606233439,0.57427494,2732.3,2731.4,3.66112616]
[1764606233635,0.405504,2732.2,2731.4,3.66112616]
[1764606233858,1.13109811,2732.2,2731.2,7.50547546]
[1764606234060,0.405504,2732.0,2731.2,3.84408121]
[1764606234257,0.405504,2731.8,2731.2,3.84408121]
[1764606234455,0.581504,2731.8,2731.2,3.84408121]
[1764606235344,0.597,2731.7,2731.2,7.50547546]
[1764606235562,0.597,2731.7,2731.3,0.4561]
[1764606235766,0.597,2731.7,2731.3,1.61839697]
[1764606236140,0.597,2731.7,2731.4,7.32225232]
[1764606236470,0.597,2731.7,2731.3,3.66122313]
[1764606237372,0.597,2731.7,2731.3,7.77858333]
[1764606237677,0.597,2731.7,2731.3,4.11732313]
[1764606237861,0.597,2731.7,2731.3,3.66122313]
[1764606238261,0.597,2731.7,2731.3,7.32248333]
[1764606238871,0.597,2731.7,2731.4,0.4561]
[1764606239369,0.002,2732.5,2731.4,1.61836397]
[1764606239571,0.002,2732.5,2732.2,0.1752]
[1764606239934,0.002,2732.5,2732.2,0.6393]
[1764606240149,0.002,2732.5,2731.4,1.88785808]
[1764606240150,0.002,2732.5,2731.9,0.1868]
[1764606240569,0.405504,2732.3,2731.6,3.66085571]
[1764606240770,0.002,2732.5,2731.6,3.66085571]
[1764606240948,0.599,2732.5,2731.6,3.66085571]
[1764606241156,0.002,2732.5,2731.6,7.32171381]
[1764606241471,0.002,2732.5,2731.7,1.19627138]
[1764606241671,0.002,2732.5,2731.7,1.92186549]
[1764606241870,0.002,2732.5,2731.8,0.4641]
[1764606242457,0.002,2732.5,2731.9,15.23882436]
[1764606242653,0.002,2732.5,2731.9,7.91791218]
[1764606242881,0.002,2732.5,2732.0,1.30230122]
[1764606243249,0.002,2732.5,2732.1,0.4641]
[1764606244165,0.002,2732.5,2731.9,7.32091218]
[1764606244366,0.002,2732.5,2731.7,4.12475832]
[1764606244367,0.002,2732.5,2731.8,7.32118016]
[1764606244671,0.002,2732.5,2731.8,15.10646032]
[1764606244979,0.002,2732.5,2731.9,2.70034014]
[1764606245355,0.002,2732.5,2732.1,0.405504]
[1764606245565,0.002,2732.8,2732.2,0.596]
[1764606245767,0.002,2732.8,2732.2,1.0601]
[1764606245974,0.002,2732.8,2732.3,0.4641]
[1764606246570,0.002,2732.8,2732.4,10.97935878]
[1764606246757,0.002,2732.8,2732.5,0.4641]
[1764606247361,0.002,2732.8,2732.4,3.65978626]
[1764606247707,0.002,2732.8,2731.9,1.97474603]
[1764606247708,0.4576,2732.7,2731.5,1.0601]
[1764606247856,0.4576,2732.7,2731.6,0.4641]
[1764606249085,0.002,2732.8,2731.7,18.30362045]
[1764606249379,0.002,2732.8,2731.8,1.87677204]
[1764606249566,0.002,2732.8,2731.8,2.34087204]
[1764606249893,0.002,2732.8,2731.9,1.0601]
[1764606250276,0.002,2732.7,2732.0,0.4641]
[1764606250476,0.002,2732.7,2731.8,1.87677204]
[1764606250674,0.4596,2732.7,2731.7,4.25672409]
[1764606250986,0.4596,2732.7,2731.7,7.91744818]
[1764606251355,0.8233223,2732.7,2731.7,10.98217227]
[1764606251561,1.0556,2732.7,2731.7,3.66072409]
[1764606251766,0.8213223,2732.6,2731.7,7.32144818]
[1764606251977,0.21449164,2732.5,2731.7,7.32144818]
[1764606252190,0.67209164,2732.5,2731.7,7.32144818]
[1764606252560,0.3637223,2732.6,2731.7,3.66072409]
[1764606252764,0.4576,2732.4,2731.7,7.32144818]
[1764606253097,0.4576,2732.4,2731.5,7.32296831]
[1764606253790,0.8213223,2732.4,2731.5,7.32296831]
[1764606253958,0.4576,2732.4,2731.5,7.32296831]
[1764606255878,0.9418743,2732.4,2731.5,7.32296831]
[1764606256059,0.4576,2732.4,2731.5,7.32296831]
[1764606257086,0.405504,2732.3,2731.5,7.32296831]
[1764606257484,0.4568,2732.2,2731.5,0.001]
[1764606257997,4.480595,2732.2,2731.5,0.001]
[1764606258300,0.4568,2732.2,2731.5,0.001]
[1764606258487,22.2018455,2731.6,2731.5,0.001]
[1764606258804,22.2018455,2731.6,2731.2,0.001]
[1764606258805,0.7692263,2731.3,2731.2,0.001]
[1764606259012,8.89377041,2731.3,2731.2,0.001]
[1764606259368,5.0264865,2731.3,2731.2,0.001]
[1764606259598,14.17471338,2731.3,2731.2,0.001]
[1764606259966,9.09405218,2731.3,2731.2,0.001]
[1764606260169,10.53985038,2731.3,2731.2,0.001]
[1764606260370,4.3276963,2731.0,2730.9,0.001]
[1764606260706,7.95219141,2731.0,2730.9,0.001]
[1764606260903,10.30602769,2731.0,2730.9,0.001]
[1764606261081,3.84865669,2731.0,2730.9,0.001]
[1764606261417,6.76403469,2731.0,2730.9,0.001]
[1764606261620,0.72559411,2731.0,2730.9,0.001]
[1764606261769,8.28526222,2731.0,2730.9,0.001]
[1764606261969,12.73154691,2731.0,2730.9,0.001]
[1764606262201,8.07369452,2731.0,2730.9,0.001]
[1764606262619,11.73535691,2731.0,2730.9,0.001]
[1764606262791,8.45328911,2730.9,2729.9,0.001]
[1764606262994,0.596,2730.8,2729.9,0.001]
[1764606263194,1.001504,2730.7,2729.9,0.001]
[1764606263415,0.596,2730.6,2729.9,0.001]
[1764606263905,0.405504,2730.7,2729.9,1.23327095]
[1764606263906,0.596,2730.7,2729.9,1.23327095]
[1764606264105,0.405504,2730.6,2729.9,0.001]
[1764606264286,0.7692263,2730.6,2729.9,0.001]
[1764606264806,0.405504,2730.6,2729.9,0.001]
[1764606265802,0.7692263,2730.6,2729.9,0.001]
[1764606266002,0.405504,2730.6,2729.9,0.001]
[1764606266168,0.7692263,2730.6,2729.9,0.001]
[1764606266377,0.4266,2730.0,2729.9,0.001]
[1764606267214,0.405504,2730.4,2729.9,0.001]
[1764606267215,1.08931641,2730.5,2729.9,0.001]
[1764606267513,0.596,2730.2,2729.9,0.001]
[1764606267881,0.596,2730.2,2729.9,0.4549]
[1764606268178,0.596,2730.3,2729.9,0.001]
[1764606268399,0.4507,2730.2,2729.9,0.001]
[1764606268603,0.596,2730.3,2729.9,0.001]
[1764606268799,0.856204,2730.2,2729.9,0.001]
[1764606269114,0.4266,2730.0,2729.9,0.001]
[1764606269490,0.8771,2730.0,2729.9,0.001]
[1764606270109,1.282604,2730.0,2729.9,0.001]
[1764606270479,1.6463263,2730.0,2729.9,0.001]
[1764606271003,1.88607734,2730.0,2729.9,0.001]
[1764606271210,1.282604,2730.0,2729.9,0.001]
[1764606271409,15.70687507,2730.0,2729.9,0.001]
[1764606271609,14.97119507,2730.0,2729.9,0.001]
[1764606271980,2.37192041,2730.0,2729.9,0.001]
[1764606272178,2.96792041,2730.0,2729.9,0.001]
[1764606272405,4.32755959,2730.0,2729.9,0.001]
[1764606272589,7.82837659,2730.0,2729.9,0.001]
[1764606272785,3.51333729,2730.0,2729.9,0.001]
[1764606273009,2.15369811,2730.0,2729.9,0.001]
[1764606273578,2.51742041,2730.0,2729.9,0.001]
[1764606273907,11.62623307,2730.0,2729.9,0.001]
[1764606274105,5.74341611,2730.0,2729.9,0.001]
[1764606274313,0.72559411,2730.0,2729.9,0.001]
[1764606274610,1.32259411,2730.0,2729.9,0.001]
[1764606274812,1.1715919,2730.1,2729.9,0.001]
[1764606275480,0.8777,2730.0,2729.9,0.001]
[1764606275706,1.58783729,2730.0,2729.9,0.001]
[1764606275904,1.09813319,2730.0,2729.9,0.001]
[1764606276308,1.48813319,2730.0,2729.9,0.001]
[1764606276611,11.92424026,2730.0,2729.9,0.001]
[1764606277426,15.95210026,2730.0,2729.9,0.001]
[1764606277759,15.95210026,2730.0,2729.6,0.001]
[1764606277760,1.13109811,2729.7,2729.6,0.001]
[1764606277915,15.06150658,2729.4,2728.0,0.1978]
[1764606278121,0.72559411,2729.3,2728.0,0.1978]
[1764606278322,0.3637223,2728.3,2727.7,3.66599906]
[1764606278478,0.597,2728.2,2727.7,3.66599906]
[1764606279213,0.597,2728.2,2727.7,7.78529137]
[1764606279396,0.597,2728.2,2727.8,0.4532]
[1764606280482,0.1896,2729.1,2728.1,0.618]
[1764606280800,0.1896,2729.1,2727.9,3.66582352]
[1764606280801,0.405504,2728.9,2727.9,3.66582352]
[1764606281109,0.405504,2728.9,2728.0,0.4532]
[1764606281311,0.597,2728.8,2728.0,0.4532]
[1764606281520,0.6536,2729.1,2728.1,0.1498]
[1764606281729,0.597,2729.0,2728.1,0.1498]
[1764606282021,0.597,2728.9,2728.2,0.4532]
[1764606282414,0.597,2728.9,2728.3,7.33057214]
[1764606282815,0.597,2728.9,2728.3,0.4532]
[1764606283518,0.464,2729.6,2728.3,0.4532]
[1764606283724,0.72559411,2729.4,2728.3,1.97967424]
[1764606283903,0.597,2729.3,2728.4,0.4532]
[1764606284095,0.79640821,2729.3,2728.4,0.4532]
[1764606284416,0.36391934,2729.1,2728.2,7.33082287]
[1764606284613,0.869504,2729.2,2728.2,7.33082287]
[1764606284614,0.82791934,2729.0,2728.2,7.33082287]
[1764606284818,0.19590175,2729.0,2728.3,0.4532]
[1764606285024,0.19590175,2729.0,2728.2,3.66540245]
[1764606285206,0.60140575,2729.0,2728.2,7.33082287]
[1764606285404,0.96532509,2729.0,2728.2,7.33082287]
[1764606285609,0.405504,2728.9,2728.1,3.81530759]
[1764606285821,0.405504,2728.7,2728.1,3.81530759]
[1764606286017,0.405504,2728.7,2728.1,7.48086237]
[1764606286414,0.405504,2728.7,2728.1,3.81530759]
[1764606286623,0.0997041,2729.2,2728.6,0.4682]
[1764606286797,0.002,2729.7,2729.1,0.6547]
[1764606287001,0.002,2729.7,2729.6,0.4682]
[1764606287407,0.002,2729.7,2729.6,0.9214]
[1764606288531,0.002,2729.7,2729.6,4.58494044]
[1764606289834,0.002,2729.7,2729.6,4.13174044]
[1764606290023,0.002,2729.7,2729.1,0.1865]
[1764606290532,0.002,2729.7,2729.1,3.8506759]
[1764606290935,0.002,2729.7,2729.1,7.51488754]
[1764606291602,0.002,2729.7,2729.1,3.8506759]
[1764606291815,0.002,2729.7,2729.1,7.51488754]
[1764606292312,0.002,2729.7,2729.1,4.3038759]
[1764606292511,0.002,2729.7,2728.8,3.66456617]
[1764606292764,0.002,2729.7,2728.8,10.99379513]
[1764606292939,0.002,2729.7,2728.9,0.4532]
[1764606294013,0.002,2729.7,2729.6,0.6547]
[1764606294204,0.002,2729.7,2729.6,1.1079]
[1764606294533,0.002,2729.7,2729.6,0.6547]
[1764606294702,0.002,2729.7,2729.6,4.77144044]
[1764606294905,0.002,2729.7,2729.6,5.61495085]
[1764606296431,0.002,2729.7,2729.6,6.63905837]
[1764606296636,0.002,2730.3,2729.8,0.405504]
[1764606296839,0.002,2730.3,2730.2,0.6547]
[1764606297011,0.002,2730.3,2730.2,1.2507]
[1764606297338,0.002,2730.3,2730.2,1.7039]
[1764606298725,0.002,2730.3,2730.2,5.36663533]
[1764606298911,0.002,2730.3,2730.2,6.26958478]
[1764606299629,0.002,2730.3,2730.2,6.99517889]
[1764606299938,0.002,2731.3,2730.3,0.72559411]
[1764606300140,0.002,2731.3,2730.9,0.466]
[1764606300742,0.002,2731.3,2730.9,0.9324]
[1764606300914,0.002,2731.3,2730.6,3.66219878]
[1764606301115,0.002,2731.3,2730.6,7.32439756]
[1764606301645,0.002,2731.3,2730.6,3.66219878]
[1764606301838,0.4697,2731.3,2730.6,3.66219878]
[1764606302145,0.002,2731.3,2730.7,0.4664]
[1764606302322,0.002,2731.3,2730.6,10.98659634]
[1764606302529,0.002,2731.3,2730.6,11.45299634]
[1764606303051,0.002,2732.7,2731.3,0.405504]
[1764606303215,0.002,2732.7,2732.2,0.1842]
[1764606303553,0.0012,2732.7,2732.3,1.0624]
[1764606304014,0.0012,2732.7,2732.4,0.4664]
[1764606304746,0.0012,2732.7,2732.6,0.72559411]
[1764606305052,0.002,2733.3,2732.6,0.72559411]
[1764606305053,0.4677,2734.8,2733.1,0.1598]
[1764606305215,0.4677,2734.8,2733.2,11.09748645]
[1764606305423,0.4677,2734.8,2733.3,0.72559411]
[1764606305649,0.4677,2734.8,2733.3,1.19199411]
[1764606305855,0.4677,2734.8,2733.4,0.4664]
[1764606306143,0.4677,2734.8,2733.4,1.69534806]
[1764606306735,4.4008846,2735.0,2733.4,1.69534806]
[1764606306935,0.4677,2734.9,2733.4,4.85044146]
[1764606307240,0.5737871,2735.5,2733.4,5.25594546]
[1764606307430,0.4697,2735.7,2734.1,10.50148645]
[1764606307612,0.4697,2735.7,2734.2,1.32159411]
[1764606307822,0.002,2735.7,2734.5,10.50148645]
[1764606308021,0.002,2735.7,2734.6,2.11254864]
[1764606308452,0.002,2735.7,2734.7,0.4664]
[1764606308666,0.002,2735.7,2735.6,0.1842]
[1764606308867,0.002,2735.7,2735.6,5.1612993]
[1764606309163,0.1935,2737.5,2735.7,1.59749811]
[1764606309321,0.1935,2737.5,2736.2,10.68568645]
[1764606309517,0.1935,2737.5,2736.2,0.7802]
[1764606309765,0.1935,2737.5,2736.2,1.2466]
[1764606309914,0.6612,2738.0,2736.3,0.405504]
[1764606310118,0.1935,2738.3,2736.6,10.50148645]
[1764606310468,0.1935,2738.6,2737.0,10.50148645]
[1764606310761,0.1935,2738.6,2736.8,0.405504]
[1764606310762,1.13109811,2738.4,2737.1,0.596]
[1764606310971,0.80456255,2738.3,2737.1,4.24949771]
[1764606311257,0.80456255,2738.3,2736.8,0.596]
[1764606311258,0.82529821,2738.3,2736.8,0.596]
[1764606311464,3.547907,2738.2,2736.8,0.596]
[1764606311660,0.57307654,2738.0,2736.8,0.596]
[1764606311819,0.29612835,2737.9,2736.8,0.596]
[1764606312015,0.29612835,2737.9,2736.5,0.596]
[1764606312016,6.261642,2737.8,2736.5,0.596]
[1764606312218,9.13426411,2737.6,2735.8,0.4664]
[1764606312566,9.13426411,2737.6,2735.2,10.50148645]
[1764606312567,1.13109811,2737.4,2736.0,0.596]
[1764606312805,1.13109811,2737.4,2735.0,3.84039981]
[1764606312806,1.13109811,2737.2,2735.4,0.4664]
[1764606313068,3.118768,2736.9,2735.6,0.7792]
[1764606313272,3.118768,2736.9,2735.6,4.43470181]
[1764606313273,0.405504,2736.9,2735.6,4.43470181]
[1764606313420,1.17997212,2736.9,2735.7,0.90987018]
[1764606313620,10.50148645,2737.8,2735.7,0.90987018]
[1764606313621,0.4677,2737.5,2735.7,0.90987018]
[1764606313925,4.561792,2737.4,2735.8,0.4664]
[1764606314120,0.4677,2737.5,2735.8,0.4664]
[1764606314121,0.4677,2737.2,2735.9,0.595]
[1764606314474,0.4677,2737.2,2735.8,0.4664]
[1764606314684,5.11311,2736.9,2735.4,0.1842]
[1764606314963,0.1645,2735.9,2735.0,0.1842]
[1764606315266,0.1645,2735.9,2734.9,4.7177997]
[1764606315267,0.72559411,2735.8,2734.6,1.05014864]
[1764606315473,0.4677,2735.8,2734.5,0.595]
[1764606315682,0.89009411,2735.9,2734.5,0.595]
[1764606315683,0.4677,2735.7,2734.5,0.595]
[1764606315971,0.1645,2735.9,2734.6,0.4664]
[1764606316343,0.4677,2736.7,2735.8,0.1842]
[1764606316583,0.6322,2737.0,2735.6,0.4664]
[1764606316751,0.4677,2736.9,2735.6,0.4664]
[1764606317075,0.4677,2736.9,2735.7,7.31074312]
[1764606317260,4.12152375,2736.9,2735.6,3.65546161]
[1764606317463,0.72559411,2736.8,2735.6,3.65546161]
[1764606317666,0.405504,2736.6,2735.2,0.4664]
[1764606317888,0.72559411,2736.4,2735.2,3.65602098]
[1764606318091,0.405504,2736.4,2735.2,3.65602098]
[1764606318290,0.4677,2736.3,2735.1,3.84037161]
[1764606318591,0.4677,2736.3,2735.1,7.96294505]
[1764606318888,0.4677,2736.3,2735.1,11.949013]
[1764606319111,0.4677,2736.3,2735.3,7.31181222]
[1764606319397,0.4677,2736.3,2735.3,11.56271833]
[1764606319976,0.4677,2736.3,2735.3,7.90681222]
[1764606320177,1.19329411,2736.3,2735.3,4.25090611]
[1764606320394,0.48477884,2736.2,2735.3,4.25090611]
[1764606320696,0.95247884,2736.2,2735.3,7.90681222]
[1764606320895,0.4677,2736.2,2735.3,7.90681222]
[1764606321496,0.4677,2736.2,2735.3,3.65590611]
[1764606321717,0.1935,2735.4,2734.3,3.65724317]
[1764606321863,4.7743,2736.0,2735.1,0.1842]
[1764606321864,0.57347433,2736.0,2735.1,0.1842]
[1764606322062,0.57347433,2736.0,2735.1,0.7792]
[1764606322367,0.4677,2735.9,2734.9,0.595]
[1764606322583,0.4677,2735.9,2734.5,0.4664]
[1764606322761,6.683334,2735.8,2734.3,7.31448634]
[1764606322984,1.19329411,2735.9,2734.4,1.0614]
[1764606322985,0.78766281,2735.7,2734.4,1.0614]
[1764606323186,0.595,2736.0,2734.4,1.78699411]
[1764606323386,0.1935,2736.1,2734.7,1.13109811]
[1764606323691,0.002,2736.3,2736.0,0.1842]
[1764606323996,0.002,2736.3,2735.0,0.72559411]
[1764606323997,0.002,2736.3,2735.6,0.595]
[1764606324503,0.002,2736.3,2735.6,1.0614]
[1764606325117,0.4697,2736.3,2735.2,0.1842]
[1764606325417,0.4697,2736.3,2735.4,0.595]
[1764606325718,0.4697,2736.3,2735.2,0.1842]
[1764606325719,0.002,2736.3,2735.3,0.4664]
[1764606326017,0.002,2736.3,2735.5,0.595]
[1764606326390,0.002,2736.3,2735.6,0.596]
[1764606326639,0.0012,2736.3,2735.3,12.15971244]
[1764606326818,0.4677,2736.2,2735.3,7.31181222]
[1764606327118,0.0012,2736.3,2735.8,8.82768557]
[1764606327320,0.0012,2736.3,2736.0,0.405504]
[1764606327686,0.0012,2736.3,2736.2,0.72559411]
[1764606328116,0.4677,2737.7,2736.3,0.405504]
[1764606328487,0.4677,2737.7,2736.4,0.596]
[1764606328800,0.4677,2737.7,2736.3,0.405504]
[1764606329002,0.4677,2737.7,2736.4,0.596]
[1764606329327,0.4677,2737.7,2736.4,0.81177981]
[1764606329498,0.1955,2736.9,2736.1,7.30967434]
[1764606329697,0.1955,2736.9,2735.9,3.65502586]
[1764606329698,0.4677,2736.8,2735.9,0.596]
[1764606329897,0.1955,2736.9,2735.9,0.596]
[1764606330098,0.002,2736.9,2736.0,0.4307]
[1764606330329,0.002,2736.9,2736.1,0.405504]
[1764606330723,0.002,2736.9,2736.2,1.0267]
[1764606331231,0.002,2736.9,2736.4,0.405504]
[1764606331635,0.002,2736.9,2736.7,7.30807176]